Cogmind - Beta 10.2 @@@ ROGUE MODE // 2021.12.06 @ 09:58:37 Player: Enzo Result: Destroyed by as-51829 with Assembled Blade Performance ------------- Evolutions (0) 0 Regions Visited (2) 400 Robots Destroyed (25) 125 Value Destroyed (595) 595 Prototype IDs (0) 0 Alien Tech Used (0) 0 Bonus (0) 0 TOTAL SCORE: 1120 Bonus ------- None Cogmind --------- Core Integrity 0/250 Matter 264/300 Energy 92/100 System Corruption 5% Temperature Cool (0) Movement Treading (180) Ox1 Location -10/Mines Parts ------- > --- POWER (1) -------- (None) > --- PROPULSION (2) --- Improved Treads > --- UTILITY (2) ------ High-capacity Storage Unit > --- WEAPON (2) ------- (None) > --- INVENTORY (12) --- Improved Heat Sink Improved Terrain Scanner Terrain Scan Processor Mining Laser Peak State ------------ > --- POWER ------------ Light Nuclear Core > --- PROPULSION ------- Improved Treads Improved Treads > --- UTILITY ---------- Improved Heat Sink High-capacity Storage Unit > --- WEAPON ----------- Particle Cannon Particle Cannon > --- INVENTORY -------- Improved Treads Improved Treads Improved Terrain Scanner Terrain Scan Processor Light Armor Plating Grenade Launcher Mining Laser [Rating: 16] Favorites ----------- Power Light Nuclear Core Engine Light Ion Engine Power Core Light Nuclear Core Propulsion Improved Treads Treads Improved Treads Utility High-capacity Storage Unit Device Improved Heat Sink Storage High-capacity Storage Unit Protection Light Armor Plating Weapon Particle Cannon Energy Gun Small Laser Energy Cannon Particle Cannon Ballistic Gun Assault Rifle Launcher Grenade Launcher Build | -11 -10 -10 ------- Run | Scr Mat Min Slots Evolved . | . . . Power . | . . . Propulsion . | . . . Utility . | . . . Weapon . | . . . Parts Attached 22 | 6 11 5 Power 2 | 1 1 . Engine 1 | 1 . . Core 1 | . 1 . Reactor . | . . . Propulsion 6 | 2 2 2 Treads 6 | 2 2 2 Leg . | . . . Wheel . | . . . Hover . | . . . Flight . | . . . Utility 6 | 1 4 1 Device 2 | . 2 . Storage 3 | 1 2 . Processor . | . . . Hackware . | . . . Protection 1 | . . 1 Artifact . | . . . Weapon 8 | 2 4 2 Energy Gun 2 | 1 1 . Energy Cannon 4 | . 3 1 Ballistic Gun 1 | 1 . . Ballistic Cannon . | . . . Launcher 1 | . . 1 Special Weapon . | . . . Impact Weapon . | . . . Slashing Weapon . | . . . Piercing Weapon . | . . . Special Melee Weapon . | . . . Unidentified Prototypes . | . . . Parts Lost 9 | . 1 8 Power 1 | . . 1 Propulsion 3 | . . 3 Utility 1 | . . 1 Weapon 4 | . 1 3 Highest Loss Streak 8 | . 1 8 Average Slot Usage (%) 95 | . 94 96 Engine 3 | . 6 . Core 10 | . 7 12 Treads 27 | . 27 27 Device 11 | . 10 12 Storage 14 | . 14 14 Energy Gun 1 | . 2 . Energy Cannon 14 | . 12 16 Ballistic Gun 5 | . 11 . Launcher 5 | . . 9 Naked Turns . | . . . Heaviest Build 46 | 10 46 46 Greatest Support 46 | 40 46 46 Greatest Overweight (x) 1 | . . 1 Average Overweight (x) . | . . . Largest Inventory Capacity 12 | 6 12 12 Average Capacity 9 | 5 8 12 Most Carried 8 | 6 8 7 Average Carried 6 | 3 6 6 Final Capacity 12 | 6 12 12 Final Carried 7 | 5 7 4 Class Distribution -------------------- 100% | Mutant Dominant Class ---------------- Mutant | -10/Materials Mutant | -10/Mines Resources | -11 -10 -10 ----------- Run | Scr Mat Min Matter Collected 529 | 266 186 77 Remotely . | . . . Salvage Created 892 | 105 466 321 Parts 53 | 5 26 22 Haulers Intercepted 2 | . 2 . Recyclers Shooed . | . . . Parts Field Recycled . | . . . Retrieved Matter . | . . . Parts Self-Destructed . | . . . Prevented . | . . . Kills | -11 -10 -10 ------- Run | Scr Mat Min Combat Hostiles Destroyed 31 | . 8 23 Melee 1 | . . 1 Guns 2 | . 2 . Cannons 11 | . 6 5 AOE 17 | . . 17 Classes Destroyed 7 | 2 3 2 Builder 3 | . 1 2 Tunneler 1 | 1 . . Hauler 2 | . 2 . Recycler 1 | 1 . . Swarmer 6 | . . 6 Grunt 12 | . 8 4 Assembled 13 | . . 13 Best Kill Streak 12 | 2 2 12 Combat Bots Only 12 | . 2 12 Max Kills in Single Turn 3 | 1 1 3 Gunslinging . | . . . Exploded 3 | . . 3 Melee 1 | . . 1 Uniques/NPCs Destroyed . | . . . Combat | -11 -10 -10 -------- Run | Scr Mat Min Damage Taken 1346 | . 365 981 Core 251 | . 44 207 Absorbed by Shields . | . . . Core Remaining (%) 100 | 100 . . Volleys Fired 71 | 2 38 31 Largest 2 | 2 2 2 Hottest 136 | 60 136 136 Shots Fired 111 | 4 69 38 Gun 39 | 4 35 . Cannon 58 | . 34 24 Launcher 14 | . . 14 Special . | . . . Kinetic 29 | 2 27 . Thermal 68 | 2 42 24 Explosive 14 | . . 14 Electromagnetic . | . . . Robot Hit Streak 12 | 3 12 7 Robot Miss Streak 3 | . 2 3 Penetration Max . | . . . Secondary Targets . | . . . Shots Hit Robots 73 | 3 49 21 Core Hits 60 | 3 16 41 Critical Hits 1 | . 1 . Critical Kills . | . . . Critical Parts Destroyed 1 | . 1 . Melee Attacks . | . . . Impact . | . . . Slashing . | . . . Piercing . | . . . Sneak Attacks . | . . . Combat Hostiles . | . . . Follow-up Attacks . | . . . Damage Inflicted 2276 | 34 850 1392 Guns 333 | 34 299 . Cannons 797 | . 551 246 Explosions 1118 | . . 1118 Melee . | . . . Ramming 28 | . . 28 Kinetic 224 | 12 212 . Thermal 906 | 22 638 246 Explosive 1118 | . . 1118 Electromagnetic . | . . . Impact . | . . . Slashing . | . . . Piercing . | . . . Highest Corruption 5 | . . 5 Average Corruption 5 | . . 5 Corruption Purged . | . . . Effects 1 | . . 1 Energy Discharges 1 | . . 1 Overload Shots . | . . . Overflow Damage 117 | . 15 102 Projectiles 15 | . 15 . Explosions 102 | . . 102 Melee . | . . . Knockbacks . | . . . Impact . | . . . Kinetic . | . . . Secondary . | . . . Self-Inflicted Damage 143 | . . 143 Shots 5 | . . 5 Rammed 11 | . . 11 Targets Rammed 11 | . . 11 Kicked . | . . . Crushed . | . . . Highest Temperature 178 | . 81 178 Average Temperature 41 | . 22 77 Received Heat Transfer 284 | . 204 80 Siege Activations . | . . . Robots Corrupted . | . . . Combat Hostiles . | . . . Parts Fried . | . . . Impact Corruptions . | . . . Robots Melted . | . . . Combat Hostiles . | . . . Parts Melted . | . . . Heat Transferred 1752 | 50 1258 444 Parts Sabotaged . | . . . Parts Stolen . | . . . Parts Stripped . | . . . Power Chain Reactions . | . . . Missiles Intercepted . | . . . Alert | -11 -10 -10 ------- Run | Scr Mat Min Peak Influence 282 | 10 157 282 Initial 57 | . 6 57 Average 119 | 6 80 185 Maximum Alert Level 1 | . . 1 Low Security (%) 82 | 100 100 62 Level 1 17 | . . 37 Level 2 . | . . . Level 3 . | . . . Level 4 . | . . . Level 5 . | . . . High Security . | . . . Max Security . | . . . Squads Dispatched 1 | . 1 . Investigation . | . . . Extermination . | . . . Reinforcement 1 | . 1 . Assault . | . . . Garrison . | . . . Intercept . | . . . Construction Impeded . | . . . Haulers Reinforced . | . . . Stealth | -11 -10 -10 --------- Run | Scr Mat Min Distress Signals 1 | . 1 . Communications Jammed . | . . . Distress Signals . | . . . Times Spotted 45 | . 17 28 Peak Tracking Total 8 | . 5 8 Tactical Retreats 4 | . 3 1 Traps | -11 -10 -10 ------- Run | Scr Mat Min Traps Triggered . | . . . Indirectly . | . . . Trap Hack Attempts . | . . . Triggered . | . . . Disarmed . | . . . Reprogrammed . | . . . Reused . | . . . Traps Extracted . | . . . Installed 5 | . . 5 Triggered . | . . . Machines | -11 -10 -10 ---------- Run | Scr Mat Min Machines Disabled 3 | . . 3 Max in Single Turn 1 | . . 1 Machines Sabotaged . | . . . Garrisons Compromised . | . . . Overloaded Fab Kills . | . . . Fab Network Shutdowns . | . . . Hacking | -11 -10 -10 --------- Run | Scr Mat Min Machines Accessed 2 | . 2 . Terminals 2 | . 2 . Fabricators . | . . . Repair Stations . | . . . Recycling Units . | . . . Scanalyzers . | . . . Garrison Access . | . . . Total Hacks 5 | . 5 . Successful 4 | . 4 . Failed 1 | . 1 . Catastrophic . | . . . Database Lockouts . | . . . Manual 2 | . 2 . Terminals 5 | . 5 . Fabricators . | . . . Repair Stations . | . . . Recycling Units . | . . . Scanalyzers . | . . . Garrison Access . | . . . Terminal Hacks 2 | . 2 . Branch Access Points 1 | . 1 . Locate Traps 1 | . 1 . Fabricator Hacks . | . . . Repair Station Hacks . | . . . Recycling Unit Hacks . | . . . Scanalyzer . | . . . Garrison Access Hacks . | . . . Unauthorized Hacks 2 | . 2 . Terminals 2 | . 2 . Botnet 1 | . 1 . Operators 1 | . 1 . Fabricators . | . . . Repair Stations . | . . . Recycling Units . | . . . Scanalyzers . | . . . Garrison Access . | . . . Data Cores Recovered . | . . . Used . | . . . Hacking Detections 2 | . 2 . Full Trace Events . | . . . Feedback Events . | . . . Feedback Blocked . | . . . Robot Schematics Acquired . | . . . Robots Built . | . . . Matter . | . . . Time . | . . . Total Robot Build Rating . | . . . Part Schematics Acquired . | . . . Parts Built . | . . . Matter . | . . . Time . | . . . Total Part Build Rating . | . . . Parts Repaired . | . . . Time . | . . . Parts Recycled . | . . . Recycled Matter . | . . . Retrieved Matter . | . . . Retrieved Components . | . . . Parts Scanalyzed . | . . . Part Schematics Acquired . | . . . Parts Damaged . | . . . Bothacking | -11 -10 -10 ------------ Run | Scr Mat Min Used RIF Installer . | . . . Robots Hacked . | . . . Non-combat . | . . . Combat . | . . . Robot Hacks Applied . | . . . Relay Couplers Released . | . . . Robots Rewired . | . . . Allies Hacked . | . . . Hacks Repelled . | . . . Allies | -11 -10 -10 -------- Run | Scr Mat Min Total Allies . | . . . Largest Group . | . . . Highest-Rated Group . | . . . Highest-Rated Ally . | . . . Total Orders . | . . . Ally Attacks . | . . . Total Damage . | . . . Kills . | . . . Allies Corrupted . | . . . Allies Melted . | . . . Intel | -11 -10 -10 ------- Run | Scr Mat Min Robot Analysis Total . | . . . Derelict Logs Recovered 1 | . . 1 Drone Launches . | . . . Drone Recoveries . | . . . Exploration | -11 -10 -10 ------------- Run | Scr Mat Min Turns Passed 1436 | 175 610 651 Spaces Moved 708 | 104 268 336 Core 13 | 13 . . Treads 695 | 91 268 336 Legs . | . . . Wheels . | . . . Hover . | . . . Flight . | . . . Fastest Speed 50 | 50 160 160 Average Speed 158 | 146 160 160 Slowest Speed 180 | 160 160 180 Overloaded Moves . | . . . Propulsion Burnouts . | . . . Robots Hopped . | . . . Cave-ins Triggered . | . . . Exploration Rate (%) 38 | 9 33 72 Regions Visited 2 Branch Regions 1 Pre-discovered Areas 1 | . . 1 Known Exits Taken 1 | . 1 . Unknown Exits Taken 1 | 1 . . Scrap Searched 1 | . . 1 Spaces Dug 11 | . . 11 Terrain Destroyed 93 | . . 93 Melee . | . . . Projectile 3 | . . 3 AOE 90 | . . 90 Terrain Rammed . | . . . Walls Destroyed . | . . . Machines Disabled . | . . . Actions | -11 -10 -10 --------- Run | Scr Mat Min Total 908 | 121 383 404 Wait 64 | 3 45 16 Move 706 | 103 267 336 Hop . | . . . Pick Up 14 | 6 8 . Fast Attach 13 | 6 7 . Attach 4 | . 1 3 Detach . | . . . Swap 5 | . 3 2 Drop 15 | 1 14 . Fire 71 | 2 38 31 Melee . | . . . Ram . | . . . Kick . | . . . Crush 11 | . . 11 Escape Stasis . | . . . Rewire . | . . . Trap 5 | . . 5 Miscellaneous . | . . . Route ------- -11/Scrapyard -10/Materials (discovered 2 exits: *Min x2) -10/Mines (discovered 2 exits: [*Mat x2]) History --------- Turn | Location | Event 2 | -11/Scrapyard | Met Revision 17 7 | -11/Scrapyard | Discovered new exit (range 15) 176 | -11/Scrapyard | Entered Materials 206 | -10/Materials | Identified exit to Mines 342 | -10/Materials | Build established: Mutant 786 | -10/Materials | Entered Mines 867 | -10/Mines | Discovered new exit (range 9) 926 | -10/Mines | Discovered new exit (range 10) 1134 | -10/Mines | Found a hidden stash of uninstalled traps 1180 | -10/Mines | Learned 8 Materials zone layouts 1320 | -10/Mines | Assembled infested the area 1325 | -10/Mines | Learned location of Storage (-8) 1397 | -10/Mines | Core integrity fell below 50% 1423 | -10/Mines | Destroyed 12 combat bots 1433 | -10/Mines | Core integrity fell below 20% 1437 | -10/Mines | Destroyed by as-51829 with Assembled Blade Last Messages --------------- 01383_ Grenade Launcher destroyed. 01383_ Destroyed Grenade Launcher. 01387_ The unstable cave ceiling collapses. 01389_ as-48035 destroyed. 01394_ Particle Cannon destroyed. 01400_ as-22795 destroyed. 01402_ as-46992 destroyed. 01404_ Acquired 16 matter. 01412_ Particle Cannon destroyed. 01414_ Imp. Treads destroyed. 01420_ Slammed into as-18803. 01426_ Lgt. Armor Plating destroyed. 01427_ Slammed into as-18803. 01428_ The unstable cave ceiling collapses. 01428_ Slammed into as-18803. 01433_ Imp. Treads destroyed. 01433_ Slammed into as-18803. 01433_ as-18803 destroyed. 01434_ Acquired 20 matter. 01435_ Slammed into as-51829. Map ----- +----------------------------------------------------+ | | | | | | | ?????????????????????????????????????????????????? | | ???????????????????????????????????????########### | | ???????????????######??????????????????# | | ??????????????## ##?????????????????# """ """ | | ????????????### #?????????????????# """ " | | ???????????## ##?????????????????# """ | | ??????????## ##???####????????#### | | ?????????## #??### ##???????# * | | ?????????# #?## ######### ## | | ?????????# #?# ####### | | ?????????## #### % #########????# # | | ??????????## ###?# #????????????#### # | | ??????????## #???# ##???????????????#### | | ??????????# # ###### ###???????????????????? | | ??????????# # # ##?????????????????????? | | ??????????#### # #??????????????????????? | | ?????????????# # #??????????????????????? | | ?????????????###### # #??????????????????????? | | ????????????????# # % a #??????????????????????? | | ????????????????## ##??????????????????????? | | ????????????????# aa#???????????????????????? | | ???????????# #a###########?????????????? | | ???????????######## # @ #?????????????? | | ??????????????????# % ########### #?????????????? | | ??????????????????# ?????????# #?????????????? | | ??????????????????## ?????????# #?????????????? | | ???????????????????# # #######??# #?????????????? | | ???????????????????# ### #?# #?????####????? | | ???????????????????%* ## ###??## ##???? | | ???????????????????##### #### ##??? | | ???????????????????????# #??? | | ???????????????????????# #??? | | ???????????????????????# ##### | | ??????????????????????# | | ???????????????????# ### | | ??????????????????? #??## ###### | | ???????????????????? #????## ##???# | | ???????????????????? ######??????# ##??# | | ????????????????????? ?????????????# #??# | | ????????????????????? ?????????????## #??# | | ?????????????????????????????????##### ##??# | | ????????????????????????????????## ####???# | | ????????????????????????????????# ^^ ###??????# | | ????????????????????????????????# ^ ##????##### | | ????????????????????????????????## ^^#????## | | ?????????????????????????????????### ##????# | | ??###?????????####?????????????????# #????## | +----------------------------------------------------+ Best States ------------- Heat Dissipation 39 Energy Generation 14 Energy Capacity 160 Matter Stores 300 Matter Capacity 300 Sight Range 16 Terrain Scan Density 10 Armor Coverage 150 Evasion (%) 40 Recoil Reduction 2 Item Schematics ----------------- None Robot Schematics ------------------ None Fabricated ------------ Nothing Alien Tech Used ----------------- None Achievements -------------- None Challenges ------------ None Game ------ Seed SystemMomentumCharger Manual? 0 Play Time 00:12:26 Cumulative 55.6 hours Start 2021.12.06 @ 09:44:29 End 2021.12.06 @ 09:58:37 Sessions 1 Manual Loads 0 Difficulty Rogue Special Mode None Game No. 122 Rogue 122 Adventurer 0 Explorer 0 Win Type - Total 0 Types 0/0/0/0/0/0/0/0/0 Lore% 41 Gallery% 44 Achievement% 35 Wizard Run 0 Options --------- ASCII 0 Keyboard 0 Movement Numpad Keybinds 0 Fullscreen 2 Font 24/Smallcaps Map View 76x50 Tactical HUD 1 Map Filters NONE Filters NONE Steam 1 RUN: 28c04cb0-220c-4672-98f2-bd4b28a48eca